bitfinex/quotes_SOLUSD_20241215
["timestamp","ask_amount","ask_price","bid_price","bid_amount"]
[1734246006111,20.0,218.41,218.26,9.92445329]
[1734246006316,10.52391812,218.47,218.26,9.92445329]
[1734246006520,10.52391812,218.47,218.27,7.95011029]
[1734246006722,8.3987148,218.47,218.27,7.95011029]
[1734246007027,8.3987148,218.47,218.26,9.92445329]
[1734246007028,0.12549,218.46,218.26,9.92445329]
[1734246007209,0.12549,218.46,218.26,1.974343]
[1734246007407,0.12549,218.42,218.26,1.974343]
[1734246007726,0.12549,218.38,218.26,1.974343]
[1734246008030,20.0,218.35,218.26,1.974343]
[1734246009431,24.027864,218.34,218.26,1.974343]
[1734246010527,0.12549,218.4,218.26,1.974343]
[1734246010711,20.0,218.34,218.26,1.974343]
[1734246011934,20.0,218.34,218.26,9.92445329]
[1734246012722,20.0,218.34,218.26,1.974343]
[1734246012918,0.12549,218.37,218.26,9.92445329]
[1734246013109,0.12549,218.37,218.27,7.95011029]
[1734246013309,13.92967935,218.47,218.31,7.95011029]
[1734246013509,10.47240362,218.48,218.32,6.2432]
[1734246013510,6.4698,218.48,218.32,6.2432]
[1734246014210,5.01286299,218.49,218.33,9.48171029]
[1734246014416,13.98927935,218.52,218.34,7.95011029]
[1734246015047,0.12549,218.51,218.34,7.95011029]
[1734246015725,20.0,218.49,218.34,7.95011029]
[1734246016037,23.776884,218.48,218.34,7.95011029]
[1734246016367,20.0,218.45,218.34,7.95011029]
[1734246018958,20.0,218.45,218.33,9.48171029]
[1734246019656,20.0,218.41,218.33,1.5316]
[1734246022160,20.0,218.41,218.33,9.48171029]
[1734246022558,0.12549,218.4,218.33,1.5316]
[1734246023153,24.027864,218.4,218.33,1.5316]
[1734246023669,0.12549,218.36,218.33,1.5316]
[1734246024859,24.027864,218.36,218.33,1.5316]
[1734246025042,20.0,218.34,218.33,1.5316]
[1734246027975,0.25098,218.39,218.33,1.5316]
[1734246028151,20.0,218.37,218.33,1.5316]
[1734246029857,18.79155973,218.37,218.33,1.5316]
[1734246031652,23.902374,218.45,218.33,1.5316]
[1734246031857,3.3494125,218.47,218.33,1.5316]
[1734246032501,0.12549,218.45,218.33,1.5316]
[1734246033160,0.12549,218.44,218.33,1.5316]
[1734246033865,20.0,218.42,218.33,1.5316]
[1734246034083,0.12549,218.41,218.33,1.5316]
[1734246035384,20.0,218.42,218.33,9.48171029]
[1734246035567,5.01286299,218.5,218.35,7.95011029]
[1734246035769,23.24414185,218.52,218.36,7.95011029]
[1734246035970,0.12549,218.51,218.36,7.95011029]
[1734246036178,25.08279081,218.52,218.36,7.95011029]
[1734246036489,0.12549,218.51,218.36,7.95011029]
[1734246036693,25.08279081,218.52,218.36,7.95011029]
[1734246037196,0.12549,218.48,218.36,7.95011029]
[1734246038208,0.12549,218.47,218.36,7.95011029]
[1734246038384,20.0,218.49,218.38,6.1407]
[1734246038582,20.0,218.49,218.38,14.09081029]
[1734246038779,20.0,218.49,218.38,6.1407]
[1734246038780,0.12549,218.48,218.38,6.1407]
[1734246038992,20.0,218.49,218.38,6.1407]
[1734246039197,23.902374,218.48,218.38,6.1407]
[1734246039384,20.0,218.45,218.38,6.1407]
[1734246040198,0.12549,218.44,218.38,6.1407]
[1734246041006,20.0,218.45,218.38,6.1407]
[1734246041435,0.12549,218.48,218.38,6.1407]
[1734246041581,20.0,218.49,218.4,7.95011029]
[1734246042315,20.0,218.49,218.41,1.5705]
[1734246042678,21.58144185,218.52,218.41,9.52061029]
[1734246043508,1.80522774,218.57,218.41,1.5705]
[1734246043509,0.12549,218.56,218.41,1.5705]
[1734246044086,23.902374,218.53,218.41,1.5705]
[1734246044321,20.0,218.5,218.41,9.52061029]
[1734246045020,0.12549,218.53,218.41,1.5705]
[1734246045428,20.0,218.52,218.41,1.5705]
[1734246045797,0.12549,218.51,218.41,1.5705]
[1734246046428,20.0,218.53,218.41,9.52061029]
[1734246046629,20.0,218.53,218.42,7.95011029]
[1734246047801,20.0,218.53,218.43,7.95011029]
[1734246049435,20.0,218.57,218.45,9.53801029]
[1734246049610,27.17766062,218.6,218.47,7.95011029]
[1734246050524,0.12549,218.59,218.47,7.95011029]
[1734246050699,26.81072279,218.59,218.45,1.5879]
[1734246050892,20.0,218.56,218.45,1.5879]
[1734246051095,20.0,218.56,218.46,7.95011029]
[1734246051908,20.0,218.56,218.45,1.5879]
[1734246052106,0.12549,218.55,218.45,1.5879]
[1734246052928,0.12549,218.55,218.45,9.53801029]
[1734246053509,0.12549,218.55,218.45,1.5879]
[1734246053910,0.12549,218.55,218.45,9.53801029]
[1734246054408,0.12549,218.55,218.45,1.5879]
[1734246054709,0.12549,218.55,218.45,9.53801029]
[1734246055042,0.12549,218.55,218.45,1.5879]
[1734246055830,0.12549,218.55,218.45,9.53801029]
[1734246056086,20.0,218.56,218.46,7.95011029]
[1734246056337,20.0,218.56,218.47,7.95011029]
[1734246056541,0.12549,218.58,218.48,7.95011029]
[1734246056716,0.12549,218.58,218.49,1.5879]
[1734246058116,0.12549,218.59,218.49,1.5879]
[1734246058315,20.0,218.57,218.49,9.53801029]
[1734246058938,20.0,218.57,218.5,6.0377]
[1734246060326,4.00260362,218.65,218.51,7.95011029]
[1734246060526,23.902374,218.64,218.52,7.95011029]
[1734246060745,23.902374,218.64,218.53,1.5879]
[1734246060932,11.39172109,218.69,218.53,1.5879]
[1734246061132,1.85371009,218.69,218.53,1.5879]
[1734246061333,0.12549,218.68,218.53,1.5879]
[1734246061638,0.12549,218.66,218.53,1.5879]
[1734246062044,20.0,218.63,218.53,1.5879]
[1734246062550,117.17724972,218.7,218.57,1.5879]
[1734246062551,2.80744246,218.69,218.57,1.5879]
[1734246062853,0.12549,218.68,218.57,1.5879]
[1734246063629,24.027864,218.64,218.57,1.5879]
[1734246065026,0.12549,218.64,218.57,1.5879]
[1734246065340,0.12549,218.65,218.57,1.5879]
[1734246066153,0.25098,218.65,218.57,1.5879]
[1734246066731,20.0,218.62,218.57,1.5879]
[1734246070250,0.12549,218.65,218.57,1.5879]
[1734246070575,0.25098,218.65,218.57,1.5879]
[1734246070756,4.00260362,218.68,218.57,1.5879]
[1734246070951,2.80744246,218.69,218.57,9.53801029]
[1734246071467,0.12549,218.68,218.57,9.53801029]
[1734246072069,20.0,218.67,218.57,1.5879]
[1734246074649,4.00260362,218.74,218.59,6.3855]
[1734246074862,4.00260362,218.74,218.6,2.3243236]
[1734246075063,4.00260362,218.74,218.63,7.95011029]
[1734246075687,0.19489,218.8,218.63,7.95011029]
[1734246075995,4.00260362,218.79,218.63,7.95011029]
[1734246076374,0.12549,218.78,218.63,7.95011029]
[1734246076578,4.00260362,218.79,218.63,7.95011029]
[1734246076780,4.00260362,218.79,218.64,1.6383]
[1734246077019,22.79289081,218.76,218.64,1.6383]
[1734246077175,0.12549,218.75,218.64,1.6383]
[1734246078076,0.25098,218.75,218.64,1.6383]
[1734246079482,0.25098,218.75,218.64,9.58841029]
[1734246079789,0.25098,218.75,218.64,1.6383]
[1734246079998,4.00260362,218.79,218.66,0.12549]
[1734246080194,0.0694,218.8,218.67,1.6383]
[1734246082303,0.25098,218.78,218.67,1.6383]
[1734246082886,20.0,218.79,218.67,10.27417895]
[1734246083919,20.0,218.79,218.69,7.95011029]
[1734246084106,20.0,218.79,218.7,1.6383]
[1734246084879,0.0694,218.8,218.71,15.97391029]
[1734246085080,0.0694,218.8,218.71,8.0238]
[1734246091819,0.19489,218.8,218.71,8.0238]
[1734246093415,0.12549,218.79,218.71,1.6383]
[1734246093667,20.0,218.77,218.71,1.6383]
[1734246094686,0.0694,218.8,218.71,1.6383]
[1734246094887,0.0694,218.8,218.72,6.2717]
[1734246095613,0.0694,218.8,218.6,16.436]
[1734246095614,24.027864,218.78,218.67,6.2717]
[1734246095788,24.027864,218.74,218.67,6.2717]
[1734246095988,20.0,218.71,218.67,6.2717]
[1734246101526,20.0,218.71,218.66,1.5415]
[1734246101527,0.25098,218.7,218.66,1.5415]
[1734246101915,20.0,218.71,218.66,1.5415]
[1734246103431,6.0914,218.8,218.66,1.5415]
[1734246103607,23.971774,218.8,218.66,1.5415]
[1734246103930,23.846284,218.8,218.66,1.5415]
[1734246104522,0.12549,218.79,218.66,1.5415]
[1734246105219,20.0,218.73,218.66,1.5415]
[1734246107509,17.216966,218.73,218.66,1.5415]
[1734246118943,14.216966,218.73,218.66,1.5415]
[1734246134862,1.82977099,218.79,218.66,1.5415]
[1734246134863,20.0,218.69,218.66,1.5415]
[1734246135063,24.027864,218.68,218.61,6.2717]
[1734246136362,20.0,218.65,218.61,6.2717]
[1734246138839,20.0,218.72,218.61,6.2717]
[1734246139083,20.0,218.68,218.61,6.2717]
[1734246139751,20.0,218.69,218.61,6.2717]
[1734246140671,23.776884,218.74,218.61,14.22181029]
[1734246140873,1.6684,218.8,218.61,14.22181029]
[1734246140874,8.70407494,218.8,218.61,14.22181029]
[1734246141048,8.70407494,218.8,218.62,7.95011029]
[1734246141242,0.12549,218.79,218.62,7.95011029]
[1734246141446,7.16116494,218.79,218.62,7.95011029]
[1734246142186,20.0,218.71,218.62,7.95011029]
[1734246142352,20.0,218.71,218.63,1.5216]
[1734246142548,20.0,218.71,218.63,9.47171029]
[1734246143972,20.0,218.71,218.63,1.5216]
[1734246144357,23.776884,218.7,218.63,1.5216]
[1734246145704,0.25098,218.69,218.63,1.5216]
[1734246146237,20.0,218.67,218.63,1.5216]
[1734246149899,23.776884,218.66,218.63,1.5216]
[1734246150122,20.0,218.63,218.58,1.5322]
[1734246151715,20.0,218.63,218.58,1.282198]
[1734246156024,23.776884,218.62,218.58,1.282198]
[1734246156340,0.25098,218.61,218.5,7.95011029]
[1734246156852,20.0,218.59,218.49,7.95011029]
[1734246158259,20.0,218.59,218.5,7.95011029]
[1734246158753,20.0,218.59,218.47,8.48579382]
[1734246159054,20.0,218.59,218.5,7.95011029]
[1734246160218,20.0,218.59,218.49,7.95011029]
[1734246160827,0.12549,218.57,218.47,15.74951029]
[1734246161034,20.0,218.55,218.42,1.5322]
[1734246161342,24.027864,218.54,218.42,1.5322]
[1734246161617,24.027864,218.54,218.43,7.95011029]
[1734246162743,23.902374,218.6,218.46,7.95011029]
[1734246163336,20.0,218.53,218.47,7.95011029]
[1734246163831,0.12549,218.56,218.47,7.95011029]
[1734246164199,24.027864,218.56,218.47,7.95011029]
[1734246164920,24.027864,218.56,218.46,7.95011029]
[1734246165900,23.89427029,218.61,218.47,7.95011029]
[1734246166123,23.89427029,218.61,218.49,6.523]
[1734246166124,20.0,218.58,218.49,6.523]
[1734246166295,1.79554915,218.65,218.49,14.47311029]
[1734246166500,1.79554915,218.65,218.5,9.49861029]
[1734246167307,0.12549,218.63,218.5,9.49861029]
[1734246167497,23.902374,218.63,218.5,9.49861029]
[1734246167821,20.0,218.6,218.5,9.49861029]
[1734246168120,23.776884,218.59,218.5,9.49861029]
[1734246168814,23.776884,218.59,218.5,1.5485]
[1734246170640,23.776884,218.59,218.5,9.49861029]
[1734246170641,20.0,218.59,218.5,9.49861029]
[1734246172999,20.0,218.59,218.5,1.5485]
[1734246173204,23.776884,218.62,218.51,7.95011029]
[1734246173607,23.776884,218.62,218.5,10.18490651]
[1734246173915,0.12549,218.61,218.5,1.5485]
[1734246174922,20.0,218.59,218.5,1.5485]
[1734246182127,23.776884,218.62,218.5,9.49861029]
[1734246182335,23.776884,218.62,218.51,7.95011029]
[1734246183405,20.12549,218.66,218.51,7.95011029]
[1734246183611,23.776884,218.65,218.53,7.95011029]
[1734246183820,5.55957029,218.7,218.53,7.95011029]
[1734246184132,0.12549,218.68,218.53,7.95011029]
[1734246185337,20.0,218.64,218.53,7.95011029]
[1734246186009,23.776884,218.63,218.54,1.6473]
[1734246186210,0.25098,218.62,218.54,1.6473]
[1734246186427,20.0,218.6,218.54,1.6473]
[1734246186634,23.776884,218.59,218.54,1.6473]
[1734246189221,0.12549,218.62,218.54,1.6473]
[1734246197452,0.12549,218.63,218.54,1.6473]
[1734246198145,23.902374,218.61,218.54,1.6473]
[1734246198852,24.027864,218.57,218.49,6.523]
[1734246199423,20.0,218.54,218.49,6.523]
[1734246200352,23.776884,218.57,218.49,6.523]
[1734246200353,0.12549,218.56,218.49,6.523]
[1734246200550,20.0,218.54,218.49,6.523]
[1734246201828,23.776884,218.53,218.48,1.5975]
[1734246205161,0.25098,218.52,218.48,1.5975]
[1734246205338,23.776884,218.49,218.44,6.4337]
[1734246209254,0.12549,218.52,218.44,6.4337]
[1734246210681,20.12549,218.56,218.44,6.4337]
[1734246210902,3.89427029,218.59,218.44,14.38381029]
[1734246211085,6.2286,218.64,218.46,7.95011029]
[1734246211258,6.2286,218.64,218.47,7.95011029]
[1734246211465,0.12549,218.62,218.47,7.95011029]
[1734246211755,0.12549,218.62,218.46,7.95011029]
[1734246212178,0.12549,218.62,218.45,9.53351029]
[1734246212783,20.0,218.55,218.45,9.53351029]
[1734246213471,20.0,218.55,218.45,1.5834]
[1734246213472,23.776884,218.54,218.45,1.5834]
[1734246213660,23.776884,218.54,218.45,9.53351029]
[1734246215357,0.12549,218.58,218.45,9.53351029]
[1734246215664,23.776884,218.56,218.45,9.53351029]
[1734246216962,23.776884,218.56,218.46,7.95011029]
[1734246217583,23.776884,218.56,218.45,10.21994896]
[1734246218865,23.776884,218.56,218.45,9.53351029]
[1734246219170,23.776884,218.56,218.45,1.5834]
[1734246219744,0.12549,218.55,218.45,1.5834]
[1734246219952,23.776884,218.52,218.45,1.5834]
[1734246221413,20.0,218.49,218.45,1.5834]
[1734246221703,20.0,218.49,218.3,24.22711081]
[1734246221704,23.776884,218.44,218.39,6.6606]
[1734246221918,0.12549,218.43,218.39,6.6606]
[1734246222068,20.0,218.41,218.38,1.5834]
[1734246222275,23.902374,218.4,218.38,1.5834]
[1734246222490,23.902374,218.4,218.34,6.6606]
[1734246225567,20.0,218.41,218.34,6.6606]
[1734246225874,23.776884,218.42,218.34,6.6606]
[1734246226076,20.0,218.43,218.34,6.6606]
[1734246230718,20.3574,218.53,218.35,7.95011029]
[1734246230719,1.6074,218.53,218.35,7.95011029]
[1734246231595,0.12549,218.52,218.35,7.95011029]
[1734246232091,20.0,218.47,218.37,1.5916]
[1734246232419,20.0,218.47,218.37,9.54171029]
[1734246232707,31.852485,218.52,218.37,9.54171029]
[1734246233013,0.12549,218.51,218.37,9.54171029]
[1734246233208,0.25098,218.51,218.37,9.54171029]
[1734246233714,20.0,218.49,218.37,9.54171029]
[1734246233917,23.902374,218.48,218.37,9.54171029]
[1734246238090,23.776884,218.48,218.37,9.54171029]
[1734246238413,20.0,218.49,218.37,9.54171029]
[1734246238909,20.0,218.49,218.38,7.95011029]
[1734246239117,20.0,218.49,218.37,9.54171029]
[1734246239817,20.0,218.49,218.38,14.61621029]
[1734246240827,20.0,218.49,218.39,7.95011029]
[1734246241026,23.902374,218.53,218.4,7.95011029]
[1734246241520,23.902374,218.53,218.41,1.5916]
[1734246242031,23.902374,218.53,218.41,9.54171029]
[1734246242585,20.0,218.52,218.41,9.54171029]
[1734246244235,20.0,218.52,218.41,1.5916]
[1734246252835,20.0,218.52,218.42,6.6448]
[1734246253621,20.0,218.52,218.42,14.59491029]
[1734246253968,86.7,218.64,218.44,9.49791029]
[1734246254125,0.12549,218.58,218.44,1.5478]
[1734246255127,20.0,218.55,218.44,1.5478]
[1734246255621,20.0,218.55,218.44,9.49791029]
[1734246256022,20.0,218.55,218.44,1.5478]
[1734246257660,20.0,218.55,218.44,9.49791029]
[1734246258251,20.0,218.55,218.44,1.5478]
[1734246258972,20.0,218.55,218.44,9.49791029]
[1734246259470,23.776884,218.58,218.47,7.95011029]
[1734246259678,2.79882011,218.63,218.48,9.49791029]
[1734246259967,8.31809,218.62,218.48,9.49791029]
[1734246260175,2.79882011,218.63,218.48,9.49791029]
[1734246260474,12.29673011,218.63,218.48,9.49791029]
[1734246260972,20.0,218.6,218.48,1.5478]
[1734246261144,20.0,218.56,218.48,1.5478]
[1734246262877,23.776884,218.55,218.48,1.5478]
[1734246263181,20.0,218.52,218.48,1.5478]
[1734246264282,20.0,218.49,218.45,6.6448]
[1734246264579,23.776884,218.51,218.45,6.6448]
[1734246266381,20.0,218.48,218.45,6.6448]
[1734246272293,20.0,218.48,218.43,1.5478]
[1734246285452,23.776884,218.51,218.43,1.5478]
[1734246285650,20.0,218.5,218.43,1.5478]
[1734246286060,23.776884,218.54,218.43,9.49791029]
[1734246286232,23.776884,218.54,218.45,6.5636]
[1734246286438,7.95011,218.56,218.46,1.64359]
[1734246286656,25.65910196,218.61,218.49,7.95011029]
[1734246287735,23.776884,218.6,218.49,7.95011029]
[1734246287940,25.65910196,218.61,218.49,7.95011029]
[1734246288247,7.95011,218.64,218.51,14.51371029]
[1734246288459,7.95011,218.64,218.52,7.95011029]
[1734246288758,7.95011,218.64,218.53,7.95011029]
[1734246289567,20.0,218.61,218.53,7.95011029]
[1734246289731,7.95011,218.64,218.53,7.95011029]
[1734246290067,7.95011,218.64,218.54,1.5233]
[1734246291966,24.027864,218.68,218.54,1.5233]
[1734246292164,23.776884,218.64,218.54,1.5233]
[1734246293363,0.12549,218.68,218.54,1.5233]
[1734246293535,24.027864,218.69,218.54,1.5233]
[1734246293735,23.776884,218.65,218.54,1.5233]
[1734246296480,23.776884,218.61,218.54,1.5233]
[1734246298249,20.0,218.68,218.54,1.5233]
[1734246298479,20.0,218.64,218.54,1.5233]
[1734246299278,1.86504088,218.69,218.54,1.5233]
[1734246299482,0.12549,218.69,218.54,1.5233]
[1734246299955,24.027864,218.69,218.54,1.5233]
[1734246300159,20.0,218.66,218.54,1.5233]
[1734246300862,20.0,218.62,218.54,1.5233]
[1734246303494,37.642374,218.72,218.55,20.0]
[1734246303668,23.902374,218.72,218.55,20.0]
[1734246304189,0.12549,218.71,218.55,20.0]
[1734246304363,24.027864,218.66,218.54,1.5233]
[1734246304783,23.776884,218.62,218.54,1.5233]
[1734246305596,20.0,218.59,218.54,1.5233]
[1734246306089,23.776884,218.58,218.54,1.5233]
[1734246312625,21.82693711,218.64,218.54,1.5233]
[1734246312824,1.66989,218.66,218.54,1.5233]
[1734246312825,20.0,218.6,218.54,1.5233]
[1734246313507,23.776884,218.61,218.54,1.5233]
[1734246314008,23.902374,218.66,218.54,1.5233]
[1734246314825,0.25098,218.65,218.54,1.5233]
[1734246315030,23.776884,218.62,218.54,1.5233]
[1734246318323,23.776884,218.64,218.54,1.5233]
[1734246318522,20.0,218.61,218.54,1.5233]
[1734246324629,23.776884,218.6,218.54,1.5233]
[1734246328625,20.0,218.57,218.54,1.5233]
[1734246329848,23.776884,218.56,218.49,1.5758]
[1734246330048,20.0,218.53,218.49,1.5758]
[1734246330261,20.0,218.53,218.45,6.1764]
[1734246330423,23.776884,218.52,218.45,6.1764]
[1734246332536,20.0,218.49,218.45,6.1764]
[1734246334364,20.0,218.49,218.44,1.5758]
[1734246337459,23.776884,218.48,218.44,1.5758]
[1734246337668,20.0,218.49,218.44,1.5758]
[1734246337859,20.0,218.54,218.44,1.5758]
[1734246338037,1.5626,218.56,218.44,1.5758]
[1734246338339,9.90264584,218.58,218.44,1.5758]
[1734246338850,0.12549,218.57,218.44,1.5758]
[1734246339034,2.69250451,218.54,218.44,1.5758]
[1734246339655,23.776884,218.53,218.44,1.5758]
[1734246340240,20.0,218.5,218.44,1.5758]
[1734246343365,20.0,218.55,218.44,1.5758]
[1734246343560,23.776884,218.54,218.44,1.5758]
[1734246343873,20.0,218.51,218.44,1.5758]
[1734246345965,23.776884,218.5,218.44,1.5758]
[1734246352759,20.0,218.47,218.44,1.5758]
[1734246370820,1.86239372,218.52,218.44,1.5758]
[1734246370821,20.0,218.52,218.44,1.5758]
[1734246370991,21.84935639,218.55,218.44,1.5758]
[1734246371416,0.12549,218.54,218.44,1.5758]
[1734246371801,20.12549,218.54,218.44,1.5758]
[1734246372219,23.902374,218.53,218.44,1.5758]
[1734246372832,20.0,218.5,218.44,1.5758]
[1734246373126,23.776884,218.49,218.36,1.6044]
[1734246375326,20.0,218.46,218.36,1.6044]
[1734246375528,20.0,218.46,218.36,9.55451029]
[1734246376314,20.0,218.46,218.36,1.6044]
[1734246380029,23.776884,218.41,218.36,1.6044]
[1734246380520,20.0,218.38,218.36,1.6044]
[1734246381527,20.0,218.38,218.34,6.5229]
[1734246381845,20.0,218.38,218.31,1.6044]
[1734246382217,23.776884,218.37,218.31,1.6044]
[1734246387797,20.0,218.34,218.31,1.6044]
[1734246389788,23.776884,218.37,218.31,1.6044]
[1734246393292,1.78858258,218.43,218.31,1.6044]
[1734246393490,0.12549,218.44,218.31,1.6044]
[1734246394197,0.25098,218.45,218.31,1.6044]
[1734246394612,24.027864,218.42,218.31,1.6044]
[1734246394821,20.0,218.39,218.31,1.6044]
[1734246400009,23.776884,218.38,218.31,1.6044]
[1734246401724,23.776884,218.38,218.26,8.42185329]
[1734246401725,5.0,218.31,218.26,4.3e-05]
[1734246401933,43.776884,218.27,218.26,4.3e-05]
[1734246402536,43.902374,218.27,218.26,4.3e-05]
[1734246403915,43.776884,218.27,218.26,4.3e-05]
[1734246406947,20.0,218.27,218.26,4.3e-05]
[1734246407320,23.776884,218.31,218.26,4.3e-05]
[1734246407720,0.12549,218.3,218.26,4.3e-05]
[1734246408670,20.0,218.28,218.26,4.3e-05]
[1734246421687,1.43909417,218.36,218.26,4.3e-05]
[1734246421874,1.5202,218.39,218.26,4.3e-05]
[1734246422079,36.15609489,218.38,218.26,4.3e-05]
[1734246422658,0.12549,218.37,218.26,4.3e-05]
[1734246422969,28.20598489,218.38,218.26,4.3e-05]
[1734246423173,20.0,218.35,218.26,4.3e-05]
[1734246423682,28.20598489,218.38,218.26,4.3e-05]
[1734246423880,81.7,218.45,218.26,7.95015329]
[1734246424100,9.531111,218.44,218.26,7.95015329]
[1734246424264,2.71609825,218.41,218.26,7.95015329]
[1734246424478,0.12549,218.4,218.26,7.95015329]
[1734246426312,20.0,218.37,218.26,4.3e-05]
[1734246426496,23.776884,218.36,218.26,4.3e-05]
[1734246429905,23.776884,218.32,218.26,4.3e-05]
[1734246431404,0.12549,218.37,218.26,4.3e-05]
[1734246431606,20.0,218.34,218.26,4.3e-05]
[1734246431795,23.776884,218.33,218.26,4.3e-05]
[1734246439735,20.0,218.3,218.26,4.3e-05]
[1734246455857,23.776884,218.33,218.26,4.3e-05]
[1734246456040,20.0,218.3,218.26,4.3e-05]
[1734246458284,23.776884,218.29,218.26,4.3e-05]
[1734246465678,0.12549,218.28,218.26,4.3e-05]
[1734246465917,21.84897317,218.34,218.26,4.3e-05]
[1734246466114,0.12549,218.29,218.26,4.3e-05]
[1734246466692,20.0,218.3,218.26,4.3e-05]
[1734246469296,0.12549,218.29,218.26,4.3e-05]
[1734246470718,43.902374,218.27,218.26,4.3e-05]
[1734246471352,20.0,218.27,218.26,4.3e-05]
[1734246472218,24.027864,218.35,218.26,4.3e-05]
[1734246472439,20.0,218.28,218.26,4.3e-05]
[1734246474639,23.902374,218.31,218.26,4.3e-05]
[1734246475844,20.0,218.33,218.26,4.3e-05]
[1734246478532,23.902374,218.32,218.26,4.3e-05]
[1734246479818,0.12549,218.31,218.26,4.3e-05]
[1734246480841,23.902374,218.32,218.26,4.3e-05]
[1734246481850,0.12549,218.32,218.26,4.3e-05]
[1734246489955,23.902374,218.3,218.26,4.3e-05]
[1734246491852,20.0,218.31,218.26,4.3e-05]
[1734246492067,20.0,218.32,218.26,4.3e-05]
[1734246494260,23.902374,218.31,218.26,4.3e-05]
[1734246499283,20.0,218.32,218.26,4.3e-05]
[1734246499728,20.0,218.31,218.26,4.3e-05]
[1734246506200,24.027864,218.34,218.26,4.3e-05]
[1734246506401,20.0,218.31,218.26,4.3e-05]
[1734246513019,24.027864,218.34,218.26,4.3e-05]
[1734246523764,23.902374,218.3,218.26,4.3e-05]
[1734246533477,0.12549,218.29,218.26,4.3e-05]
[1734246533842,44.027864,218.27,218.26,4.3e-05]
[1734246539248,24.027864,218.26,218.14,7.9735]
[1734246539446,24.027864,218.22,218.14,7.9735]
[1734246539873,24.027864,218.18,218.14,1.5126]
[1734246540058,24.027864,218.18,218.09,8.1401]
[1734246540059,0.12549,218.14,218.09,8.1401]
[1734246540267,24.027864,218.14,218.09,8.1401]
[1734246540473,0.6878187,218.13,218.0,96.81917199]
[1734246540675,0.6878187,218.13,218.06,7.95011029]
[1734246540856,0.6878187,218.18,218.06,7.95011029]
[1734246541062,24.027864,218.17,218.06,7.95011029]
[1734246541276,0.6878187,218.16,218.06,7.95011029]
[1734246543071,0.6878187,218.16,218.07,8.63781623]
[1734246543284,24.5901927,218.19,218.08,7.95011029]
[1734246543481,0.12549,218.18,218.09,8.1401]
[1734246543856,24.5901927,218.19,218.09,8.1401]
[1734246545867,0.6878187,218.19,218.09,16.77784766]
[1734246546069,11.33057164,218.26,218.09,16.77784766]
[1734246546070,0.6878187,218.22,218.11,7.95011029]
[1734246546463,0.6878187,218.25,218.11,7.95011029]
[1734246547075,0.6878187,218.25,218.12,7.95011029]
[1734246547271,0.25098,218.24,218.1,7.95011029]
[1734246547472,0.6878187,218.23,218.1,7.95011029]
[1734246547669,0.6878187,218.23,218.12,7.95011029]
[1734246548586,24.7156827,218.26,218.12,7.95011029]
[1734246549164,24.7156827,218.26,218.11,8.63765838]
[1734246549165,20.0,218.23,218.11,8.63765838]
[1734246549363,0.6878187,218.22,218.11,8.63765838]
[1734246551090,0.6878187,218.22,218.13,7.95011029]
[1734246551299,0.12549,218.24,218.14,7.95011029]
[1734246551464,0.6878187,218.25,218.15,1.5944]
[1734246558807,0.12549,218.22,218.1,1.5944]
[1734246559017,20.0,218.21,218.1,1.5944]
[1734246559178,0.6878187,218.2,218.1,1.5944]
[1734246559865,24.027864,218.19,218.1,1.5944]
[1734246560065,0.6878187,218.18,218.1,1.5944]
[1734246560699,0.6878187,218.18,218.06,9.54451029]
[1734246562099,0.12549,218.17,218.06,1.5944]
[1734246562308,20.0,218.16,218.06,1.5944]
[1734246562474,0.6878187,218.15,218.06,1.5944]
[1734246564387,0.6878187,218.15,218.01,19.52221728]
[1734246564582,24.027864,218.14,218.01,1.5944]
[1734246564780,0.12549,218.12,218.01,1.5944]
[1734246565194,0.12549,218.12,218.01,9.54451029]